[Event "5th EKA IIFL Investment 2019"]
[Site "Mumbai"]
[Date "2020.01.02"]
[Round "4.8"]
[White "Yudin, Sergei"]
[Black "Vantika, Agrawal"]
[Result "1-0"]
[ECO "B31"]
[WhiteElo "2497"]
[BlackElo "2287"]
[Annotator "ChessBase"]
[PlyCount "118"]
[EventDate "2019.12.30"]
[EventType "swiss"]
[EventCountry "IND"]
[SourceTitle "playchess.com"]
[Source "ChessBase"]
[SourceQuality "1"]
[TimeControl "40/5400+30:1800+30"]

1. e4 {[%emt 0:00:34]} c5 {[%emt 0:00:00]} 2. Nf3 {[%emt 0:00:07]} Nc6 {[%emt 0:00:00]} 3. Bb5 {[%emt 0:00:07]} g6 {[%emt 0:00:21]} 4. O-O {[%emt 0:00:18]} Bg7 {[%emt 0:00:04]} 5. c3 {[%emt 0:00:13]} Nf6 {[%emt 0:01:37]} 6. Re1 {[%emt 0:00:12]} O-O {[%emt 0:00:34]} 7. d4 {[%emt 0:00:19]} d5 {[%emt 0:05:07]} 8. e5 {[%emt 0:00:31]} Ne4 {[%emt 0:01:50]} 9. Bxc6 {[%emt 0:03:39]} bxc6 {[%emt 0:00:10]} 10. Be3 {[%emt 0:00:06]} cxd4 {[%emt 0:12:33]} 11. cxd4 {[%emt 0:00:26]} Qb6 {[%emt 0:02:46]} 12. Qc1 {[%emt 0:01:06]} Rb8 {[%emt 0:05:09]} 13. b3 {[%emt 0:02:43]} a5 {[%emt 0:03:25]} 14. Nc3 {[%emt 0:01:48]} Nxc3 {[%emt 0:03:04]} 15. Qxc3 {[%emt 0:00:44]} Bg4 {[%emt 0:15:47]} 16. Nd2 {[%emt 0:06:59]} Rfc8 {[%emt 0:02:30]} 17. Rec1 {[%emt 0:09:26]} Bf8 {[%emt 0:06:53]} 18. h3 {[%emt 0:02:44]} Bd7 {[%emt 0:00:52]} 19. Nf3 {[%emt 0:00:08]} e6 {[%emt 0:04:40]} 20. Ne1 {[%emt 0:04:42]} a4 {[%emt 0:12:59]} 21. Nd3 {[%emt 0:06:48]} axb3 {[%emt 0:08:52]} 22. Rcb1 {[%emt 0:02:51]} Qb5 {[%emt 0:04:59]} 23. axb3 {[%emt 0:07:49]} Rc7 {[%emt 0:03:09]} 24. Bc1 {[%emt 0:04:57]} Bb4 {[%emt 0:03:15]} 25. Nxb4 {[%emt 0:01:43]} Qxb4 {[%emt 0:00:04]} 26. Qe3 {[%emt 0:00:20]} Rcb7 {[%emt 0:01:47]} 27. Ba3 Qb6 {[%emt 0:00:25]} 28. Bd6 {[%emt 0:06:35]} Rc8 {[%emt 0:00:22]} 29. b4 {[%emt 0:01:01]} Qd8 {[%emt 0:00:37]} 30. Qf4 {[%emt 0:00:42]} Ra8 {[%emt 0:00:37]} 31. Qf6 {[%emt 0:02:07]} Qe8 {[%emt 0:00:25]} 32. Kh2 {[%emt 0:01:37]} Rba7 {[%emt 0:00:24]} 33. Ra5 {[%emt 0:00:23]} Bc8 {[%emt 0:00:36]} 34. h4 {[%emt 0:00:50]} h6 {[%emt 0:00:33]} 35. h5 {[%emt 0:03:41]} Kh7 {[%emt 0:00:31]} 36. hxg6+ {[%emt 0:00:18]} fxg6 {[%emt 0:00:06]} 37. Rb3 {[%emt 0:00:16]} Ba6 {[%emt 0:00:52]} 38. Rh3 {[%emt 0:04:25]} Rf7 {[%emt 0:00:29]} 39. Qh4 {[%emt 0:00:34]} h5 {[%emt 0:00:17]} 40. Rha3 {[%emt 0:00:00]} Bb7 {[%emt 0:00:00]} 41. Rxa8 {[%emt 0:01:53]} Bxa8 {[%emt 0:00:55]} 42. g4 {[%emt 0:00:51]} Bb7 {[%emt 0:08:37]} 43. gxh5 {[%emt 0:15:16]} g5 {[%emt 0:01:41]} 44. Qxg5 {[%emt 0:01:04]} Rxf2+ {[%emt 0:00:54]} 45. Kg3 {[%emt 0:00:44]} Rf5 {[%emt 0:02:28]} 46. Qe7+ {[%emt 0:00:20]} Qf7 {[%emt 0:01:18]} 47. Qxf7+ {[%emt 0:00:21]} Rxf7 {[%emt 0:00:05]} 48. Ra7 {[%emt 0:02:07]} Kh6 {[%emt 0:01:48]} 49. Kg4 {[%emt 0:00:46]} Rg7+ {[%emt 0:01:10]} 50. Kh4 {[%emt 0:00:12]} Rf7 {[%emt 0:00:20]} 51. Bc5 {[%emt 0:00:09]} Rf4+ {[%emt 0:02:20]} 52. Kg3 {[%emt 0:00:08]} Rf7 {[%emt 0:00:07]} 53. Kg4 {[%emt 0:00:05]} Rg7+ {[%emt 0:07:50]} 54. Kh4 {[%emt 0:00:26]} Rf7 {[%emt 0:00:12]} 55. Bb6 {[%emt 0:00:17]} Rd7 {[%emt 0:01:02]} 56. Ba5 {[%emt 0:00:59]} Rg7 {[%emt 0:07:56]} 57. Bd8 {[%emt 0:01:48]} Rd7 {[%emt 0:00:31]} 58. Bg5+ {[%emt 0:02:07]} Kh7 {[%emt 0:00:15]} 59. Bf6 {[%emt 0:00:46]} Kh6 1-0

[Event "5th EKA IIFL Investment 2019"]
[Site "Mumbai"]
[Date "2020.01.02"]
[Round "4.11"]
[White "Hesham, Abdelrahman"]
[Black "Mithil, Ajgaonkar"]
[Result "1-0"]
[ECO "A06"]
[WhiteElo "2416"]
[BlackElo "2278"]
[Annotator "ChessBase"]
[PlyCount "81"]
[EventDate "2019.12.30"]
[EventType "swiss"]
[EventCountry "IND"]
[SourceTitle "playchess.com"]
[Source "ChessBase"]
[SourceQuality "1"]
[TimeControl "40/5400+30:1800+30"]

1. Nf3 {[%emt 0:00:00]} d5 {[%emt 0:00:00]} 2. e3 {[%emt 0:00:00]} Nf6 {[%emt 0:00:31]} 3. c4 {[%emt 0:00:00]} c6 {[%emt 0:00:04]} 4. b3 {[%emt 0:00:41]} e6 {[%emt 0:02:41]} 5. Nc3 {[%emt 0:00:38]} Nbd7 {[%emt 0:00:21]} 6. Qc2 {[%emt 0:00:04]} Bd6 {[%emt 0:02:23]} 7. Bb2 {[%emt 0:00:08]} O-O {[%emt 0:02:04]} 8. Be2 {[%emt 0:00:05]} e5 {[%emt 0:17:17]} 9. cxd5 {[%emt 0:00:30]} cxd5 {[%emt 0:08:14]} 10. Nb5 {[%emt 0:00:06]} Bb8 {[%emt 0:00:42]} 11. Rc1 {[%emt 0:00:06]} a6 {[%emt 0:17:20]} 12. Nc7 {[%emt 0:07:00]} Ra7 {[%emt 0:03:10]} 13. Ng5 {[%emt 0:06:12]} b5 {[%emt 0:31:44]} 14. Nxd5 {[%emt 0:03:33]} Bb7 {[%emt 0:00:38]} 15. Nxf6+ {[%emt 0:07:59]} Nxf6 {[%emt 0:00:02]} 16. f4 {[%emt 0:00:15]} Bxg2 {[%emt 0:04:37]} 17. Rg1 {[%emt 0:02:28]} Rc7 {[%emt 0:00:29]} 18. Bc4 {[%emt 0:04:01]} bxc4 {[%emt 0:03:59]} 19. Bxe5 {[%emt 0:00:14]} cxb3 {[%emt 0:00:54]} 20. Bxc7 {[%emt 0:00:08]} Bxc7 {[%emt 0:00:36]} 21. axb3 {[%emt 0:00:06]} Bxf4 {[%emt 0:00:40]} 22. Rxg2 {[%emt 0:01:59]} Re8 {[%emt 0:01:54]} 23. Qf5 {[%emt 0:04:56]} Be5 {[%emt 0:00:38]} 24. Nf3 {[%emt 0:00:40]} Qd5 {[%emt 0:00:30]} 25. Ke2 {[%emt 0:03:05]} g6 {[%emt 0:00:26]} 26. Qd3 {[%emt 0:01:03]} Qa8 {[%emt 0:00:30]} 27. Rg5 {[%emt 0:00:33]} Rd8 {[%emt 0:00:30]} 28. Qc4 {[%emt 0:01:03]} Bxh2 29. Nxh2 {[%emt 0:07:36]} Ne4 {[%emt 0:00:46]} 30. Rg4 {[%emt 0:00:04]} Rxd2+ {[%emt 0:00:34]} 31. Ke1 {[%emt 0:00:03]} Nd6 {[%emt 0:00:38]} 32. Qc6 {[%emt 0:00:26]} Qd8 {[%emt 0:00:36]} 33. Kxd2 {[%emt 0:02:05]} Nc4+ {[%emt 0:00:18]} 34. Kc3 {[%emt 0:00:17]} Qd2+ {[%emt 0:00:33]} 35. Kxc4 {[%emt 0:00:04]} Qxc1+ {[%emt 0:00:03]} 36. Kd5 {[%emt 0:00:05]} Qh1+ {[%emt 0:00:22]} 37. e4 Qd1+ {[%emt 0:00:28]} 38. Ke5 {[%emt 0:05:00]} Qe2 {[%emt 0:00:19]} 39. Kf6 {[%emt 0:01:24]} Qf2+ {[%emt 0:01:07]} 40. Ke7 {[%emt 0:00:00]} h5 {[%emt 0:00:00]} 41. Rxg6+ {[%emt 0:01:20]} 1-0

[Event "5th EKA IIFL Investment 2019"]
[Site "Mumbai"]
[Date "2020.01.02"]
[Round "4.19"]
[White "Rahman, Ziaur"]
[Black "Thakur, Akash"]
[Result "1/2-1/2"]
[ECO "A06"]
[WhiteElo "2440"]
[BlackElo "2300"]
[Annotator "RC"]
[PlyCount "86"]
[EventDate "2019.12.30"]
[EventType "swiss"]
[EventCountry "IND"]
[SourceTitle "playchess.com"]
[Source "ChessBase"]
[SourceQuality "1"]
[TimeControl "40/5400+30:1800+30"]

1. Nf3 {[%emt 0:00:00]} d5 {[%emt 0:00:00]} 2. c4 {[%emt 0:00:15]} c6 {[%emt 0:00:08]} 3. e3 {[%emt 0:00:44]} Nf6 {[%emt 0:00:20]} 4. d4 {[%emt 0:00:14]} g6 {[%emt 0:01:02]} 5. Nc3 {[%emt 0:00:07]} Bg7 {[%emt 0:00:23]} 6. Be2 {[%emt 0:00:06]} O-O {[%emt 0:00:39]} 7. O-O {[%emt 0:00:05]} e6 {[%emt 0:02:54]} 8. b4 {[%emt 0:00:51]} Re8 {[%emt 0:04:48]} 9. Bb2 {[%emt 0:02:03]} Nbd7 {[%emt 0:05:25]} 10. Qb3 {[%emt 0:04:52]} b6 {[%emt 0:13:19]} 11. a4 {[%emt 0:07:16]} Bb7 {[%emt 0:01:45]} 12. Rfd1 {[%emt 0:03:59]} Qe7 {[%emt 0:20:17]} 13. Ba3 {[%emt 0:08:40]} dxc4 {[%emt 0:13:09]} 14. Bxc4 {[%emt 0:03:38]} a6 {[%emt 0:00:13]} 15. b5 {[%emt 0:04:27]} c5 {[%emt 0:00:56]} 16. bxa6 {[%emt 0:01:29]} Bxa6 {[%emt 0:00:09]} 17. Bxa6 {[%emt 0:00:26]} Rxa6 {[%emt 0:08:40]} 18. Nb5 {[%emt 0:01:39]} Ra5 19. Nd2 Rea8 {[%emt 0:05:17]} 20. Nc3 {[%emt 0:07:46]} Nd5 {[%emt 0:02:21]} 21. Nde4 {[%emt 0:03:10]} Qh4 {[%emt 0:11:28]} 22. g3 {[%emt 0:06:58]} Qg4 {[%emt 0:03:00]} 23. Kg2 {[%emt 0:02:39]} Nxc3 {[%emt 0:03:09]} 24. Nxc3 {[%emt 0:04:55]} cxd4 {[%emt 0:01:16]} 25. h3 {[%emt 0:00:46]} Qf5 {[%emt 0:01:01]} 26. exd4 {[%emt 0:00:02]} h5 {[%emt 0:00:21]} 27. Bb4 {[%emt 0:00:27]} R5a7 {[%emt 0:00:33]} 28. Nb5 {[%emt 0:01:26]} Qe4+ {[%emt 0:00:49]} 29. Kg1 {[%emt 0:00:02]} Ra6 {[%emt 0:00:31]} 30. Nc7 {[%emt 0:01:10]} Bxd4 {[%emt 0:00:07]} 31. Rxd4 {[%emt 0:03:31]} Qxd4 {[%emt 0:00:41]} 32. Rd1 {[%emt 0:00:01]} Nc5 {[%emt 0:00:19]} 33. Bxc5 {[%emt 0:00:21]} Qxc5 34. Nxa6 {[%emt 0:02:42]} Rxa6 {[%emt 0:00:08]} 35. Rd8+ {[%emt 0:01:12]} Kg7 {[%emt 0:00:01]} 36. Qb2+ {[%emt 0:01:30]} e5 {[%emt 0:00:21]} 37. Qb3 {[%emt 0:00:20]} Ra7 {[%emt 0:01:29]} 38. Rd5 {[%emt 0:00:12]} Qc6 {[%emt 0:01:08]} 39. Rb5 {[%emt 0:00:00]} Qc1+ {[%emt 0:00:00]} 40. Kg2 {[%emt 0:00:00]} Qc6+ {[%emt 0:00:00]} 41. Kh2 Ra5 42. Rxb6 {[%emt 0:06:35]} Qxa4 {[%emt 0:04:07]} 43. Qf3 {[%emt 0:01:13]} Qe8 {[%emt 0:05:21]} 1/2-1/2

[Event "5th EKA IIFL Investment 2019"]
[Site "Mumbai"]
[Date "2020.01.02"]
[Round "4.21"]
[White "Nitish, Belurkar"]
[Black "Moksh Amit Doshi"]
[Result "1/2-1/2"]
[ECO "C54"]
[WhiteElo "2294"]
[BlackElo "2399"]
[Annotator "ChessBase"]
[PlyCount "82"]
[EventDate "2019.12.30"]
[EventType "swiss"]
[EventCountry "IND"]
[SourceTitle "playchess.com"]
[Source "ChessBase"]
[SourceQuality "1"]
[TimeControl "40/5400+30:1800+30"]

1. e4 e5 {[%emt 0:01:31]} 2. Nf3 {[%emt 0:00:00]} Nc6 {[%emt 0:00:05]} 3. Bc4 {[%emt 0:00:00]} Bc5 {[%emt 0:00:06]} 4. c3 {[%emt 0:00:00]} Nf6 {[%emt 0:00:06]} 5. d3 {[%emt 0:00:00]} O-O {[%emt 0:00:42]} 6. O-O {[%emt 0:00:12]} d5 {[%emt 0:02:03]} 7. exd5 {[%emt 0:04:28]} Nxd5 {[%emt 0:00:07]} 8. Nbd2 {[%emt 0:02:46]} Nb6 {[%emt 0:03:21]} 9. Ne4 {[%emt 0:08:28]} Nxc4 {[%emt 0:03:57]} 10. Nxc5 {[%emt 0:00:22]} Nd6 {[%emt 0:04:06]} 11. Ne4 {[%emt 0:08:23]} Bf5 {[%emt 0:04:16]} 12. Ng3 {[%emt 0:01:59]} Bg6 {[%emt 0:01:47]} 13. Re1 {[%emt 0:02:34]} f6 {[%emt 0:01:22]} 14. d4 {[%emt 0:06:15]} e4 {[%emt 0:04:12]} 15. Nh4 {[%emt 0:01:56]} f5 {[%emt 0:00:27]} 16. Nxg6 {[%emt 0:00:06]} hxg6 {[%emt 0:00:05]} 17. f3 {[%emt 0:15:08]} Qh4 {[%emt 0:00:59]} 18. fxe4 {[%emt 0:00:39]} fxe4 {[%emt 0:00:33]} 19. Be3 {[%emt 0:01:31]} Ne7 {[%emt 0:07:17]} 20. Qb3+ {[%emt 0:01:43]} Kh7 {[%emt 0:01:21]} 21. Rf1 {[%emt 0:03:42]} Nef5 {[%emt 0:08:28]} 22. Rf4 {[%emt 0:11:00]} Qe7 {[%emt 0:00:53]} 23. Nxf5 {[%emt 0:01:09]} Nxf5 {[%emt 0:03:33]} 24. Re1 {[%emt 0:01:58]} g5 {[%emt 0:01:22]} 25. Rf2 {[%emt 0:08:08]} Nxe3 {[%emt 0:00:16]} 26. Rxe3 {[%emt 0:00:07]} Rxf2 {[%emt 0:00:06]} 27. Kxf2 {[%emt 0:00:03]} Rf8+ {[%emt 0:00:28]} 28. Ke2 {[%emt 0:01:43]} Qf6 {[%emt 0:00:29]} 29. Kd2 {[%emt 0:00:38]} Qf2+ {[%emt 0:07:52]} 30. Re2 {[%emt 0:00:55]} e3+ {[%emt 0:02:03]} 31. Kd3 {[%emt 0:01:25]} Qf5+ {[%emt 0:11:31]} 32. Kxe3 {[%emt 0:00:26]} Re8+ {[%emt 0:01:23]} 33. Kd2 {[%emt 0:00:01]} Qf4+ {[%emt 0:00:21]} 34. Kd3 {[%emt 0:00:12]} Qf5+ {[%emt 0:02:56]} 35. Kd2 {[%emt 0:00:01]} Qf4+ {[%emt 0:00:34]} 36. Ke1 {[%emt 0:03:26]} Rxe2+ {[%emt 0:01:33]} 37. Kxe2 {[%emt 0:00:11]} Qe4+ {[%emt 0:00:04]} 38. Kf2 {[%emt 0:00:10]} Qf4+ {[%emt 0:00:04]} 39. Ke2 {[%emt 0:00:02]} Qe4+ {[%emt 0:00:07]} 40. Kf2 {[%emt 0:00:00]} Qf4+ {[%emt 0:00:00]} 41. Ke2 {[%emt 0:00:05]} Qe4+ {[%emt 0:00:12]} 1/2-1/2

[Event "5th EKA IIFL Investment 2019"]
[Site "Mumbai"]
[Date "2020.01.02"]
[Round "4.22"]
[White "Abdisalimov, Abdimalik"]
[Black "Harshad, S."]
[Result "1-0"]
[ECO "E53"]
[WhiteElo "2394"]
[BlackElo "2291"]
[Annotator "ChessBase"]
[PlyCount "127"]
[EventDate "2019.12.30"]
[EventType "swiss"]
[EventCountry "IND"]
[SourceTitle "playchess.com"]
[Source "ChessBase"]
[SourceQuality "1"]
[TimeControl "40/5400+30:1800+30"]

1. d4 {[%emt 0:00:00]} Nf6 {[%emt 0:00:00]} 2. c4 e6 {[%emt 0:00:08]} 3. Nc3 {[%emt 0:00:00]} Bb4 {[%emt 0:00:06]} 4. e3 {[%emt 0:00:00]} O-O {[%emt 0:00:09]} 5. Bd3 {[%emt 0:00:05]} d5 {[%emt 0:00:18]} 6. Nf3 {[%emt 0:00:06]} c5 {[%emt 0:06:27]} 7. cxd5 {[%emt 0:00:06]} cxd4 {[%emt 0:00:35]} 8. exd4 {[%emt 0:00:05]} Nxd5 {[%emt 0:01:10]} 9. O-O {[%emt 0:00:07]} Be7 {[%emt 0:06:59]} 10. a3 {[%emt 0:04:47]} Nc6 {[%emt 0:01:59]} 11. Bc2 {[%emt 0:00:06]} b6 {[%emt 0:07:26]} 12. Qd3 {[%emt 0:00:19]} g6 {[%emt 0:00:37]} 13. Bh6 {[%emt 0:00:53]} Re8 {[%emt 0:00:46]} 14. Ba4 {[%emt 0:05:19]} Bd7 {[%emt 0:02:13]} 15. Nxd5 {[%emt 0:01:38]} exd5 {[%emt 0:01:03]} 16. Rac1 {[%emt 0:00:23]} Rc8 {[%emt 0:11:46]} 17. Qa6 {[%emt 0:01:01]} Bf6 {[%emt 0:08:34]} 18. Be3 {[%emt 0:09:34]} Re7 {[%emt 0:09:39]} 19. b4 {[%emt 0:11:39]} Nb8 {[%emt 0:10:54]} 20. Rxc8 {[%emt 0:03:12]} Bxc8 {[%emt 0:02:01]} 21. Qd3 {[%emt 0:00:26]} a6 {[%emt 0:04:21]} 22. Bf4 {[%emt 0:01:59]} Nd7 {[%emt 0:02:57]} 23. Bc6 {[%emt 0:01:27]} Nf8 {[%emt 0:00:53]} 24. Rc1 {[%emt 0:02:16]} Ne6 {[%emt 0:06:32]} 25. Bg3 {[%emt 0:01:09]} b5 {[%emt 0:01:22]} 26. h3 {[%emt 0:06:53]} Bb7 {[%emt 0:01:39]} 27. Bxb7 {[%emt 0:00:05]} Rxb7 {[%emt 0:00:05]} 28. Rc6 {[%emt 0:00:04]} Rb6 {[%emt 0:03:20]} 29. Bc7 {[%emt 0:00:21]} Rxc6 {[%emt 0:00:52]} 30. Bxd8 {[%emt 0:00:01]} Nxd8 {[%emt 0:00:23]} 31. Nd2 {[%emt 0:10:42]} Ne6 {[%emt 0:02:26]} 32. Nb3 {[%emt 0:02:11]} Kg7 {[%emt 0:00:36]} 33. Qf3 {[%emt 0:00:16]} Rd6 {[%emt 0:00:47]} 34. Qc3 {[%emt 0:00:07]} Rd8 {[%emt 0:01:44]} 35. g3 {[%emt 0:00:31]} h5 {[%emt 0:00:38]} 36. h4 {[%emt 0:01:05]} Rd6 {[%emt 0:01:36]} 37. Kf1 {[%emt 0:00:07]} Rd8 {[%emt 0:02:48]} 38. Ke2 {[%emt 0:02:14]} Re8 {[%emt 0:02:14]} 39. Kf1 {[%emt 0:06:48]} Nxd4 {[%emt 0:00:52]} 40. Nxd4 {[%emt 0:00:00]} Re4 {[%emt 0:00:00]} 41. Qc6 {[%emt 0:00:27]} Rxd4 {[%emt 0:01:03]} 42. Qxa6 {[%emt 0:02:00]} Rd1+ {[%emt 0:00:44]} 43. Ke2 {[%emt 0:00:16]} Rc1 {[%emt 0:06:02]} 44. Qxb5 {[%emt 0:00:18]} d4 {[%emt 0:00:15]} 45. a4 {[%emt 0:00:50]} Rc2+ {[%emt 0:01:21]} 46. Kd1 {[%emt 0:02:22]} Rxf2 {[%emt 0:03:48]} 47. Qd3 {[%emt 0:00:53]} Ra2 {[%emt 0:02:12]} 48. a5 {[%emt 0:01:12]} Ra4 {[%emt 0:00:38]} 49. Qc4 {[%emt 0:01:02]} d3 {[%emt 0:05:13]} 50. Qb3 {[%emt 0:00:59]} Ra1+ {[%emt 0:01:26]} 51. Kd2 {[%emt 0:00:59]} Rg1 {[%emt 0:00:51]} 52. Qxd3 {[%emt 0:00:18]} Be5 {[%emt 0:01:16]} 53. a6 {[%emt 0:00:13]} Rg2+ {[%emt 0:00:53]} 54. Kd1 {[%emt 0:00:47]} Ra2 {[%emt 0:02:49]} 55. b5 {[%emt 0:00:21]} Ra1+ {[%emt 0:01:17]} 56. Kc2 {[%emt 0:00:26]} Ra2+ {[%emt 0:01:44]} 57. Kb3 {[%emt 0:00:06]} Rb2+ {[%emt 0:00:15]} 58. Ka3 {[%emt 0:00:09]} Rg2 {[%emt 0:00:14]} 59. a7 {[%emt 0:00:10]} Rg1 {[%emt 0:00:24]} 60. b6 {[%emt 0:00:11]} Ra1+ {[%emt 0:00:56]} 61. Kb4 {[%emt 0:00:07]} Ra2 {[%emt 0:00:20]} 62. Kb5 {[%emt 0:00:34]} Rb2+ {[%emt 0:00:30]} 63. Kc6 {[%emt 0:00:07]} Ra2 {[%emt 0:00:08]} 64. Kb7 {[%emt 0:00:05]} 1-0

[Event "5th EKA IIFL Investment 2019"]
[Site "Mumbai"]
[Date "2020.01.02"]
[Round "4.23"]
[White "Srihari, L R"]
[Black "Eraschenkov, Denis"]
[Result "1-0"]
[ECO "E70"]
[WhiteElo "2271"]
[BlackElo "2386"]
[Annotator "NA"]
[PlyCount "44"]
[EventDate "2019.12.30"]
[EventType "swiss"]
[EventCountry "IND"]
[SourceTitle "playchess.com"]
[Source "ChessBase"]
[SourceQuality "1"]
[TimeControl "40/5400+30:1800+30"]

1. d4 Nf6 2. c4 g6 3. Nc3 Bg7 4. e4 O-O 5. h3 d6 6. Be3 Na6 7. Bd3 e5 8. d5 Nc5 9. Bc2 a5 10. Nge2 Nh5 11. Qd2 Bd7 12. g4 Nf6 13. Ng3 $16 c6 14. g5 Ne8 15. O-O-O cxd5 16. Nxd5 Rc8 17. Qe2 Ne6 18. h4 Nf4 19. Bxf4 exf4 20. Nf5 gxf5 21. exf5 f6 22. Ne7+ Kh8 1-0

[Event "5th EKA IIFL Investment 2019"]
[Site "Mumbai"]
[Date "2020.01.02"]
[Round "4.24"]
[White "Muthaiah AL"]
[Black "Ziatdinov, Raset"]
[Result "1-0"]
[ECO "A06"]
[WhiteElo "2363"]
[BlackElo "2204"]
[Annotator "ChessBase"]
[PlyCount "59"]
[EventDate "2019.12.30"]
[EventType "swiss"]
[EventCountry "IND"]
[SourceTitle "playchess.com"]
[Source "ChessBase"]
[SourceQuality "1"]
[TimeControl "40/5400+30:1800+30"]

1. Nf3 {[%emt 0:00:00]} d5 {[%emt 0:00:00]} 2. g3 {[%emt 0:00:00]} Nf6 {[%emt 0:00:00]} 3. c4 {[%emt 0:00:37]} d4 {[%emt 0:00:00]} 4. Bg2 {[%emt 0:00:31]} Nc6 {[%emt 0:00:06]} 5. O-O {[%emt 0:00:30]} e5 {[%emt 0:00:24]} 6. d3 {[%emt 0:00:25]} Bg4 {[%emt 0:01:55]} 7. h3 {[%emt 0:02:09]} Bxf3 {[%emt 0:00:37]} 8. exf3 {[%emt 0:06:27]} Bd6 {[%emt 0:00:19]} 9. Na3 {[%emt 0:01:27]} a6 {[%emt 0:03:25]} 10. f4 {[%emt 0:17:57]} exf4 {[%emt 0:00:13]} 11. Re1+ {[%emt 0:02:11]} Kf8 {[%emt 0:00:08]} 12. c5 {[%emt 0:00:46]} Bxc5 {[%emt 0:00:31]} 13. Bxf4 {[%emt 0:00:21]} Bb4 {[%emt 0:01:19]} 14. Re2 {[%emt 0:06:54]} Nd5 {[%emt 0:00:24]} 15. Bd2 {[%emt 0:08:20]} Bxa3 {[%emt 0:04:38]} 16. Qb3 {[%emt 0:01:48]} Bxb2 {[%emt 0:07:16]} 17. Qxb2 {[%emt 0:01:21]} Rb8 {[%emt 0:01:04]} 18. Rae1 {[%emt 0:10:00]} Nf6 {[%emt 0:06:38]} 19. Bg5 {[%emt 0:08:42]} Qd6 {[%emt 0:00:32]} 20. Bxc6 {[%emt 0:04:41]} Qxc6 {[%emt 0:00:31]} 21. Qxd4 {[%emt 0:00:17]} h6 {[%emt 0:13:34]} 22. Bxf6 {[%emt 0:04:29]} gxf6 {[%emt 0:01:19]} 23. Re7 {[%emt 0:01:54]} h5 {[%emt 0:07:09]} 24. Rd7 {[%emt 0:02:31]} Rh7 {[%emt 0:01:49]} 25. Ree7 {[%emt 0:01:53]} Kg8 {[%emt 0:14:34]} 26. Rxc7 {[%emt 0:01:22]} Qf3 {[%emt 0:00:06]} 27. Qd7 {[%emt 0:04:44]} Rf8 {[%emt 0:03:31]} 28. Re8 {[%emt 0:00:47]} Kg7 {[%emt 0:04:29]} 29. Rxf8 {[%emt 0:00:30]} Kxf8 {[%emt 0:00:15]} 30. Qe7+ {[%emt 0:00:15]} 1-0

[Event "5th EKA IIFL Investment 2019"]
[Site "Mumbai"]
[Date "2020.01.02"]
[Round "4.25"]
[White "Luong, Phuong Hanh"]
[Black "Neelash Saha"]
[Result "0-1"]
[ECO "D02"]
[WhiteElo "2256"]
[BlackElo "2356"]
[Annotator "ChessBase"]
[PlyCount "82"]
[EventDate "2019.12.30"]
[EventType "swiss"]
[EventCountry "IND"]
[SourceTitle "playchess.com"]
[Source "ChessBase"]
[SourceQuality "1"]
[TimeControl "40/5400+30:1800+30"]

1. d4 {[%emt 0:03:42]} d5 {[%emt 0:00:43]} 2. Nf3 {[%emt 0:00:11]} Nf6 {[%emt 0:00:06]} 3. Bf4 {[%emt 0:00:08]} c5 {[%emt 0:00:39]} 4. e3 {[%emt 0:00:07]} Nc6 {[%emt 0:00:08]} 5. c3 {[%emt 0:00:53]} Bf5 {[%emt 0:01:38]} 6. Qb3 {[%emt 0:04:52]} Qc8 {[%emt 0:00:15]} 7. dxc5 {[%emt 0:01:09]} e6 {[%emt 0:02:10]} 8. Nd4 {[%emt 0:03:18]} Bxb1 {[%emt 0:16:57]} 9. Rxb1 {[%emt 0:00:10]} Nd7 {[%emt 0:00:10]} 10. Bd6 {[%emt 0:08:02]} Nxc5 {[%emt 0:01:59]} 11. Bxc5 {[%emt 0:00:06]} Bxc5 {[%emt 0:00:03]} 12. Bd3 {[%emt 0:00:32]} O-O {[%emt 0:00:35]} 13. Nxc6 {[%emt 0:02:28]} bxc6 {[%emt 0:00:22]} 14. O-O {[%emt 0:01:13]} f5 {[%emt 0:00:45]} 15. c4 {[%emt 0:06:04]} Bd6 {[%emt 0:05:05]} 16. cxd5 {[%emt 0:00:50]} cxd5 {[%emt 0:00:07]} 17. Rbc1 {[%emt 0:01:41]} Qd7 {[%emt 0:00:15]} 18. Qb5 {[%emt 0:00:54]} Qe7 {[%emt 0:03:12]} 19. Rc6 {[%emt 0:01:44]} Rfd8 {[%emt 0:06:57]} 20. Qa4 {[%emt 0:05:31]} Rab8 {[%emt 0:01:37]} 21. Qc2 {[%emt 0:00:16]} Qh4 {[%emt 0:01:48]} 22. g3 {[%emt 0:01:46]} Qf6 {[%emt 0:00:05]} 23. b3 {[%emt 0:00:31]} h5 {[%emt 0:00:58]} 24. Qe2 {[%emt 0:06:21]} h4 {[%emt 0:04:06]} 25. Rfc1 {[%emt 0:03:26]} hxg3 {[%emt 0:27:14]} 26. hxg3 {[%emt 0:00:09]} Kf7 {[%emt 0:00:06]} 27. Ra6 {[%emt 0:13:24]} Qh6 {[%emt 0:11:07]} 28. Rxa7+ {[%emt 0:02:57]} Kf6 {[%emt 0:00:04]} 29. Rc6 {[%emt 0:16:18]} Rbc8 {[%emt 0:00:34]} 30. Qb2+ {[%emt 0:05:45]} Be5 {[%emt 0:01:46]} 31. Rxc8 {[%emt 0:04:03]} Rxc8 {[%emt 0:01:18]} 32. Qa3 {[%emt 0:00:11]} Kg6 {[%emt 0:05:23]} 33. Qe7 {[%emt 0:02:32]} Rc1+ {[%emt 0:02:02]} 34. Bf1 {[%emt 0:00:02]} Qh3 {[%emt 0:00:36]} 35. Qxe6+ {[%emt 0:00:24]} Kh7 {[%emt 0:00:05]} 36. Qa6 {[%emt 0:00:53]} Bxg3 {[%emt 0:00:20]} 37. Rxg7+ {[%emt 0:03:44]} Kxg7 {[%emt 0:00:05]} 38. Qa7+ {[%emt 0:00:29]} Kg6 {[%emt 0:00:48]} 39. Qa6+ {[%emt 0:00:08]} Kg5 {[%emt 0:01:28]} 40. fxg3 {[%emt 0:00:00]} Qxg3+ {[%emt 0:00:00]} 41. Kh1 {[%emt 0:00:22]} Rc2 {[%emt 0:01:05]} 0-1